lending/lending_fUSD_20260110
["ID","MTS","AMOUNT","RATE_DAILY","PERIOD"]
[401211219,1768047046100,-280.6,0.00017169,2]
[401211220,1768047046111,-150.0,0.00017172,2]
[401211221,1768047046120,-150.0,0.00017174,2]
[401211222,1768047046131,-200.0,0.00017174,2]
[401211223,1768047046141,-150.0,0.00017176,2]
[401211224,1768047046151,-1283.39,0.00017177,2]
[401211225,1768047046162,-213.87423394,0.00017182,2]
[401211226,1768047046172,-226.31905987,0.00017182,2]
[401211227,1768047046182,-179.17962515,0.00017187,2]
[401211228,1768047046191,-150.0,0.00017187,2]
[401211229,1768047046202,-150.0,0.00017193,2]
[401211230,1768047046211,-150.0,0.00017198,2]
[401211231,1768047046221,-213.87423394,0.000172,2]
[401211232,1768047046231,-226.31905987,0.000172,2]
[401211233,1768047046241,-150.0,0.000172,2]
[401211234,1768047046251,-150.0,0.00017203,2]
[401211235,1768047046261,-150.0,0.00017205,2]
[401211236,1768047046271,-500.0,0.00017205,2]
[401211237,1768047046282,-150.0,0.00017212,2]
[401211238,1768047046291,-150.0,0.00017214,2]
[401211239,1768047046302,-150.0,0.00017216,2]
[401211240,1768047046312,-213.87423394,0.00017218,2]
[401211241,1768047046322,-226.31905987,0.00017218,2]
[401211242,1768047046332,-150.0,0.00017219,2]
[401211243,1768047046343,-150.0,0.00017229,2]
[401211244,1768047046352,-150.0,0.00017229,2]
[401211245,1768047046362,-150.0,0.00017233,2]
[401211246,1768047046373,-150.0,0.00017234,2]
[401211247,1768047046383,-213.87423394,0.00017236,2]
[401211248,1768047046393,-226.31905987,0.00017236,2]
[401211249,1768047046402,-150.0,0.00017241,2]
[401211250,1768047046411,-280.6,0.00017245,2]
[401211251,1768047046422,-150.0,0.00017245,2]
[401211252,1768047046436,-150.0,0.00017247,2]
[401211253,1768047046446,-159.16121496,0.00017248,2]
[401211254,1768047046456,-213.87423394,0.00017255,2]
[401211255,1768047046467,-226.31905987,0.00017255,2]
[401211256,1768047046477,-150.0,0.00017255,2]
[401211257,1768047046487,-3789.96380221,0.00017261,2]
[401211258,1768047046497,-150.0,0.00017262,2]
[401211259,1768047046506,-150.0,0.00017263,2]
[401211260,1768047046516,-150.0,0.00017267,2]
[401211261,1768047046526,-150.0,0.00017269,2]
[401211262,1768047046535,-213.87423394,0.00017273,2]
[401211263,1768047046544,-226.31905987,0.00017273,2]
[401211264,1768047046554,-150.0,0.00017274,2]
[401211265,1768047046563,-150.0,0.00017276,2]
[401211266,1768047046573,-150.0,0.0001728,2]
[401211267,1768047046582,-150.0,0.00017284,2]
[401211268,1768047046592,-150.0,0.00017288,2]
[401211269,1768047046601,-213.87423394,0.00017291,2]
[401211270,1768047046611,-226.31905987,0.00017291,2]
[401211271,1768047046620,-150.0,0.00017292,2]
[401211272,1768047046629,-249.27802935,0.00017296,2]
[401211273,1768047046639,-150.0,0.00017297,2]
[401211274,1768047046648,-150.0,0.00017303,2]
[401211275,1768047046658,-2950.03425894,0.00017306,2]
[401211276,1768047046667,-150.0,0.00017306,2]
[401211277,1768047046677,-213.87423394,0.00017309,2]
[401211278,1768047046687,-226.31905987,0.00017309,2]
[401211279,1768047046697,-150.0,0.00017317,2]
[401211280,1768047046706,-280.6,0.0001732,2]
[401211281,1768047046716,-150.0,0.00017321,2]
[401211282,1768047046725,-150.0,0.00017325,2]
[401211283,1768047046735,-150.0,0.00017325,2]
[401211284,1768047046746,-213.87423394,0.00017327,2]
[401211285,1768047046756,-226.31905987,0.00017327,2]
[401211286,1768047046767,-150.0,0.00017328,2]
[401211287,1768047046776,-179.17962515,0.00017329,2]
[401211288,1768047046788,-150.0,0.0001733,2]
[401211289,1768047046798,-150.0,0.00017332,2]
[401211290,1768047046808,-150.0,0.00017333,2]
[401211291,1768047046819,-150.0,0.00017338,2]
[401211292,1768047046828,-213.87423394,0.00017345,2]
[401211293,1768047046838,-226.31905987,0.00017345,2]
[401211294,1768047046847,-150.0,0.00017349,2]
[401211295,1768047046857,-150.0,0.00017351,2]
[401211296,1768047046866,-150.0,0.00017357,2]
[401211297,1768047046878,-150.0,0.00017359,2]
[401211298,1768047046887,-834.0,0.0001736,2]
[401211299,1768047046897,-162.0,0.0001736,2]
[401211300,1768047046907,-150.0,0.00017361,2]
[401211301,1768047046916,-213.87423394,0.00017364,2]
[401211302,1768047046927,-226.31905987,0.00017364,2]
[401211303,1768047046937,-150.0,0.00017371,2]
[401211304,1768047046946,-150.0,0.00017372,2]
[401211305,1768047046960,-150.0,0.00017379,2]
[401211306,1768047046970,-150.0,0.0001738,2]
[401211307,1768047046979,-150.0,0.00017381,2]
[401211308,1768047046989,-213.87423394,0.00017382,2]
[401211309,1768047046999,-226.31905987,0.00017382,2]
[401211310,1768047047009,-3789.96380221,0.00017388,2]
[401211311,1768047047018,-150.0,0.0001739,2]
[401211312,1768047047028,-150.0,0.00017393,2]
[401211313,1768047047038,-280.6,0.00017396,2]
[401211314,1768047047048,-500.0,0.00017399,2]
[401211315,1768047047057,-150.0,0.000174,2]
[401211316,1768047047070,-213.87423394,0.000174,2]
[401211317,1768047047079,-226.31905987,0.000174,2]
[401211318,1768047047090,-150.0,0.000174,2]
[401211319,1768047047100,-150.0,0.0001741,2]
[401211320,1768047047110,-150.0,0.00017414,2]
[401211321,1768047047120,-150.0,0.00017414,2]
[401211322,1768047047130,-213.87423394,0.00017418,2]
[401211323,1768047047140,-226.31905987,0.00017418,2]
[401211324,1768047047150,-150.0,0.00017419,2]
[401211325,1768047047160,-150.0,0.00017421,2]
[401211326,1768047047171,-150.0,0.00017436,2]
[401211327,1768047047181,-213.87423394,0.00017436,2]
[401211328,1768047047196,-226.31905987,0.00017436,2]
[401211329,1768047047206,-150.0,0.00017437,2]
[401211330,1768047047216,-150.0,0.00017439,2]
[401211331,1768047047226,-150.0,0.00017441,2]
[401211332,1768047047236,-150.0,0.00017448,2]
[401211333,1768047047247,-1283.39,0.00017451,2]
[401211334,1768047047258,-533.88981491,0.00017451,2]
[401211335,1768047047269,-151.0,0.00017451,2]
[401211336,1768047047279,-213.87423394,0.00017455,2]
[401211337,1768047047288,-226.31905987,0.00017455,2]
[401211338,1768047047298,-150.0,0.00017456,2]
[401211339,1768047047308,-150.0,0.00017458,2]
[401211340,1768047047318,-21368.0,0.0001746,2]
[401211341,1768047047329,-150.0,0.00017462,2]
[401211342,1768047047339,-150.0,0.00017467,2]
[401211343,1768047047349,-150.0,0.00017469,2]
[401211344,1768047047360,-280.6,0.00017471,2]
[401211345,1768047047371,-179.17962515,0.00017472,2]
[401211346,1768047047381,-213.87423394,0.00017473,2]
[401211347,1768047047391,-226.31905987,0.00017473,2]
[401211348,1768047047401,-226.304,0.00017473,2]
[401211349,1768047047411,-957.198,0.00017473,2]
[401211350,1768047047424,-150.0,0.00017477,2]
[401211351,1768047047532,-150.0,0.0001748,2]
[401211352,1768047047543,-150.0,0.00017483,2]
[401211353,1768047047553,-150.0,0.00017486,2]
[401211354,1768047047564,-150.0,0.00017486,2]
[401211355,1768047047573,-826.466,0.0001749,2]
[401211356,1768047047583,-213.87423394,0.00017491,2]
[401211357,1768047047592,-226.31905987,0.00017491,2]
[401211358,1768047047603,-150.0,0.00017494,2]
[401211359,1768047047615,-150.0,0.00017498,2]
[401211360,1768047047624,-150.0,0.00017498,2]
[401211361,1768047047634,-2000.0,0.000175,2]
[401211362,1768047047643,-150.0,0.00017501,2]
[401211363,1768047047653,-150.0,0.00017503,2]
[401211364,1768047047662,-2950.03425894,0.00017504,2]
[401211365,1768047047672,-150.0,0.00017506,2]
[401211366,1768047047682,-213.87423394,0.00017509,2]
[401211367,1768047047691,-226.31905987,0.00017509,2]
[401211368,1768047047701,-3789.96380221,0.00017516,2]
[401211369,1768047047709,-150.0,0.00017523,2]
[401211370,1768047047719,-150.0,0.00017524,2]
[401211371,1768047047728,-370.0,0.00017527,2]
[401211372,1768047047738,-213.87423394,0.00017527,2]
[401211373,1768047047747,-226.31905987,0.00017527,2]
[401211374,1768047047756,-150.0,0.00017528,2]
[401211375,1768047047767,-150.0,0.00017533,2]
[401211376,1768047047776,-500.0,0.00017534,2]
[401211377,1768047047785,-150.0,0.00017534,2]
[401211378,1768047047795,-150.0,0.00017534,2]
[401211379,1768047047805,-150.0,0.00017534,2]
[401211380,1768047047815,-154.70701265,0.00017534,2]
[401211381,1768047047824,-250.0,0.00017534,2]
[401211382,1768047047833,-600.0,0.00017534,2]
[401211383,1768047047844,-150.0,0.00017535,2]
[401211384,1768047047853,-150.0,0.0001754,2]
[401211385,1768047047862,-150.0,0.00017545,2]
[401211386,1768047047871,-150.0,0.00017545,2]
[401211387,1768047047881,-213.87423394,0.00017545,2]
[401211388,1768047047890,-226.31905987,0.00017545,2]
[401211389,1768047047900,-280.6,0.00017547,2]
[401211390,1768047047910,-150.0,0.0001755,2]
[401211391,1768047047920,-150.0,0.0001755,2]
[401211392,1768047047930,-150.0,0.00017557,2]
[401211393,1768047047939,-213.87423394,0.00017564,2]
[401211394,1768047047949,-226.31905987,0.00017564,2]
[401211395,1768047047959,-150.0,0.00017565,2]
[401211396,1768047047968,-150.0,0.00017566,2]
[401211397,1768047047978,-150.0,0.00017566,2]
[401211398,1768047047987,-150.0,0.00017581,2]
[401211399,1768047047997,-213.87423394,0.00017582,2]
[401211400,1768047048007,-226.31905987,0.00017582,2]
[401211401,1768047048016,-150.0,0.00017586,2]
[401211402,1768047048026,-150.0,0.00017587,2]
[401211403,1768047048036,-150.0,0.00017588,2]
[401211404,1768047048045,-500.0,0.00017589,2]
[401211405,1768047048055,-150.0,0.00017589,2]
[401211406,1768047048065,-150.0,0.00017589,2]
[401211407,1768047048074,-222.12982038,0.00017589,2]
[401211408,1768047048086,-150.0,0.00017594,2]
[401211409,1768047048096,-213.87423394,0.000176,2]
[401211410,1768047048106,-226.31905987,0.000176,2]
[401211411,1768047048116,-150.0,0.000176,2]
[401211412,1768047048126,-150.0,0.00017606,2]
[401211413,1768047048135,-150.0,0.00017607,2]
[401211414,1768047048145,-150.0,0.0001761,2]
[401211415,1768047048154,-150.0,0.00017614,2]
[401211416,1768047048166,-179.17962515,0.00017615,2]
[401211417,1768047048176,-150.0,0.00017616,2]
[401211418,1768047048187,-213.87423394,0.00017618,2]
[401211419,1768047048200,-226.31905987,0.00017618,2]
[401211420,1768047048212,-280.6,0.00017622,2]
[401211421,1768047048223,-150.0,0.00017623,2]
[401211422,1768047048233,-150.0,0.00017623,2]
[401211423,1768047048243,-370.0,0.00017626,2]
[401211424,1768047048253,-150.0,0.00017628,2]
[401211425,1768047048263,-150.0,0.00017631,2]
[401211426,1768047048272,-213.87423394,0.00017636,2]
[401211427,1768047048282,-226.31905987,0.00017636,2]
[401211428,1768047048291,-150.0,0.0001764,2]
[401211429,1768047048301,-21368.0,0.0001764,2]
[401211430,1768047048311,-10537.80982193,0.0001764,2]
[401211431,1768047048322,-370.0,0.0001764,2]
[401211432,1768047048332,-500.0,0.00017644,2]
[401211433,1768047048342,-200.0,0.00017644,2]
[401211434,1768047048351,-150.0,0.00017644,2]
[401211435,1768047048361,-3789.96380221,0.00017644,2]
[401211436,1768047048371,-150.0,0.00017646,2]
[401211437,1768047048380,-150.0,0.00017648,2]
[401211438,1768047048391,-150.0,0.00017652,2]
[401211439,1768047048401,-150.0,0.00017653,2]
[401211440,1768047048412,-213.87423394,0.00017655,2]
[401211441,1768047048422,-226.31905987,0.00017655,2]
[401211442,1768047048436,-150.0,0.00017662,2]
[401211443,1768047048445,-150.0,0.00017665,2]
[401211444,1768047048455,-150.0,0.00017667,2]
[401211445,1768047048465,-150.0,0.00017669,2]
[401211446,1768047048476,-213.87423394,0.00017673,2]
[401211447,1768047048486,-226.31905987,0.00017673,2]
[401211448,1768047048496,-150.0,0.00017675,2]
[401211449,1768047048506,-150.0,0.00017675,2]
[401211450,1768047048517,-150.0,0.00017681,2]
[401211451,1768047048526,-150.0,0.0001769,2]
[401211452,1768047048536,-213.87423394,0.00017691,2]
[401211453,1768047048546,-226.31905987,0.00017691,2]
[401211454,1768047048556,-150.0,0.00017696,2]
[401211455,1768047048567,-280.6,0.00017698,2]
[401211456,1768047048577,-500.0,0.00017698,2]
[401211457,1768047048587,-150.0,0.00017698,2]
[401211458,1768047048596,-505.594,0.000177,2]
[401211459,1768047048607,-1267.487,0.000177,2]
[401211460,1768047048618,-1000.0,0.000177,2]
[401211461,1768047048629,-2950.03425894,0.00017702,2]
[401211462,1768047048639,-150.0,0.00017705,2]
[401211463,1768047048650,-150.0,0.00017707,2]
[401211464,1768047048661,-213.87423394,0.00017709,2]
[401211465,1768047048670,-226.31905987,0.00017709,2]
[401211466,1768047048680,-150.0,0.0001771,2]
[401211467,1768047048690,-150.0,0.0001771,2]
[401211468,1768047048700,-1202.614,0.00017717,2]
[401211469,1768047048710,-915.241,0.00017717,2]
[401211470,1768047048720,-4820.0,0.00017717,2]
[401211471,1768047048730,-566.0,0.00017717,2]
[401211472,1768047048740,-1424.982,0.00017717,2]
[401211473,1768047048750,-2441.065,0.00017717,2]
[401211474,1768047048760,-150.0,0.00017718,2]
[401211475,1768047048770,-150.0,0.00017719,2]
[401211476,1768047048780,-334.5472959,0.00017724,2]
[401211477,1768047048790,-151.0,0.00017724,2]
[401211478,1768047048799,-642.94,0.00017724,2]
[401211479,1768047048810,-1283.39,0.00017725,2]
[401211480,1768047048821,-213.87423394,0.00017727,2]
[401211481,1768047048831,-226.31905987,0.00017727,2]
[401211482,1768047048842,-150.0,0.00017731,2]
[401211483,1768047048851,-150.0,0.00017733,2]
[401211484,1768047048864,-1400.0,0.00017734,7]
[401211485,1768047048874,-150.0,0.00017734,2]
[401211486,1768047048885,-150.0,0.00017739,2]
[401211487,1768047048895,-150.0,0.0001774,2]
[401211488,1768047048904,-150.0,0.00017743,2]
[401211489,1768047048915,-150.0,0.00017743,2]
[401211490,1768047048925,-213.87423394,0.00017745,2]
[401211491,1768047048935,-226.31905987,0.00017745,2]
[401211492,1768047048945,-150.0,0.00017749,2]
[401211493,1768047048955,-150.0,0.00017752,2]
[401211494,1768047048964,-500.0,0.00017753,2]
[401211495,1768047048974,-179.17962515,0.00017757,2]
[401211496,1768047048984,-150.0,0.00017761,2]
[401211497,1768047048994,-213.87423394,0.00017764,2]
[401211498,1768047049004,-226.31905987,0.00017764,2]
[401211499,1768047049015,-150.0,0.00017764,2]
[401211500,1768047049025,-150.0,0.00017768,2]
[401211501,1768047049035,-3789.96380221,0.00017772,2]
[401211502,1768047049044,-150.0,0.00017772,2]
[401211503,1768047049054,-280.6,0.00017773,2]
[401211504,1768047049064,-150.0,0.00017775,2]
[401211505,1768047049074,-150.0,0.00017775,2]
[401211506,1768047049084,-213.87423394,0.00017782,2]
[401211507,1768047049095,-226.31905987,0.00017782,2]
[401211508,1768047049104,-150.0,0.00017783,2]
[401211509,1768047049114,-150.0,0.00017791,2]
[401211510,1768047049123,-1000.0,0.00017791,2]
[401211511,1768047049133,-150.0,0.00017793,2]
[401211512,1768047049142,-150.0,0.00017793,2]
[401211513,1768047049152,-150.0,0.00017797,2]
[401211514,1768047049162,-213.87423394,0.000178,2]
[401211515,1768047049171,-226.31905987,0.000178,2]
[401211516,1768047049182,-150.0,0.000178,2]
[401211517,1768047049192,-1000.0,0.000178,2]
[401211518,1768047049201,-542.84141296,0.000178,2]
[401211519,1768047049212,-150.0,0.00017805,2]
[401211520,1768047049222,-500.0,0.00017808,2]
[401211521,1768047049231,-500.0,0.00017808,2]
[401211522,1768047049241,-207.26988174,0.00017808,2]
[401211523,1768047049251,-150.0,0.00017814,2]
[401211524,1768047049261,-213.87423394,0.00017818,2]
[401211525,1768047049272,-226.31905987,0.00017818,2]
[401211526,1768047049282,-6102.51909,0.0001782,2]
[401211527,1768047049292,-6102.51909,0.0001782,2]
[401211528,1768047049302,-21368.0,0.0001782,2]
[401211529,1768047049312,-159.35537069,0.0001782,2]
[401211530,1768047049322,-150.0,0.00017823,2]
[401211531,1768047049332,-150.0,0.00017826,2]
[401211532,1768047049342,-150.0,0.00017827,2]
[401211533,1768047049352,-6102.51909,0.0001783,2]
[401211534,1768047049362,-150.0,0.00017831,2]
[401211535,1768047049372,-150.0,0.00017833,2]
[401211536,1768047049382,-150.0,0.00017834,2]
[401211537,1768047049392,-213.87423394,0.00017836,2]
[401211538,1768047049403,-226.31905987,0.00017836,2]
[401211539,1768047049414,-150.0,0.00017848,2]
[401211540,1768047049424,-280.6,0.00017849,2]
[401211541,1768047049436,-542.84141294,0.0001785,2]
[401211542,1768047049445,-150.0,0.00017852,2]
[401211543,1768047049454,-213.87423394,0.00017855,2]
[401211544,1768047049465,-226.31905987,0.00017855,2]
[401211545,1768047049475,-150.0,0.00017855,2]
[401211546,1768047049485,-200.0,0.00017855,2]
[401211547,1768047049495,-150.0,0.00017855,2]
[401211548,1768047049506,-2000.0,0.00017856,2]
[401211549,1768047049516,-200.0,0.00017856,2]
[401211550,1768047049525,-200.0,0.00017856,2]
[401211551,1768047049535,-6102.51909,0.0001786,2]
[401211552,1768047049545,-500.0,0.00017863,2]
[401211553,1768047049554,-500.0,0.00017863,2]
[401211554,1768047049563,-150.0,0.00017867,2]
[401211555,1768047049573,-150.0,0.0001787,2]
[401211556,1768047049583,-150.0,0.00017871,2]
[401211557,1768047049592,-213.87423394,0.00017873,2]
[401211558,1768047049602,-226.31905987,0.00017873,2]
[401211559,1768047049612,-150.0,0.00017874,2]
[401211560,1768047049622,-150.0,0.00017876,2]
[401211561,1768047049631,-6102.5191,0.0001788,2]
[401211562,1768047049641,-150.0,0.00017882,2]
[401211563,1768047049651,-150.0,0.00017884,2]
[401211564,1768047049660,-150.0,0.00017887,2]
[401211565,1768047049670,-213.87423394,0.00017891,2]
[401211566,1768047049683,-226.31905987,0.00017891,2]
[401211567,1768047049692,-25000.0,0.00017891,3]
[401211568,1768047049702,-150.0,0.00017892,2]
[401211569,1768047049711,-150.0,0.00017897,2]
[401211570,1768047049724,-1887.20841984,0.00017899,2]
[401211571,1768047049735,-1887.20841984,0.00017899,2]
[401211572,1768047049745,-1887.20841984,0.00017899,2]
[401211573,1768047049754,-1887.20841984,0.000179,2]
[401211574,1768047049763,-1887.20841984,0.000179,2]
[401211575,1768047049772,-10000.0,0.000179,2]
[401211576,1768047049781,-1173.69062044,0.000179,2]
[401211577,1768047049791,-25000.0,0.000179,3]
[401211578,1768047049800,-1173.69062044,0.000179,2]
[401211579,1768047049810,-1173.69062044,0.000179,2]
[401211580,1768047049820,-1173.69062044,0.000179,2]
[401211581,1768047049830,-1173.69062044,0.000179,2]
[401211582,1768047049840,-1173.69062044,0.000179,2]
[401211583,1768047049850,-1173.69062044,0.000179,2]
[401211584,1768047049860,-1173.69062044,0.000179,2]
[401211585,1768047049869,-3789.96380221,0.000179,2]
[401211586,1768047049880,-1173.69062044,0.000179,2]
[401211587,1768047049890,-1173.69062044,0.000179,2]
[401211588,1768047049900,-1173.69062044,0.000179,2]
[401211589,1768047049910,-1173.69062044,0.000179,2]
[401211590,1768047049920,-1173.69062044,0.000179,2]
[401211591,1768047049930,-1173.69062044,0.000179,2]
[401211592,1768047049940,-591.38897096,0.000179,2]
[401211593,1768047049949,-179.17962515,0.000179,2]
[401211594,1768047049959,-2950.03425894,0.000179,2]
[401211595,1768047049968,-3039.43303365,0.000179,2]
[401211596,1768047049978,-179.38897292,0.000179,3]
[401211597,1768047049988,-542.84141294,0.000179,2]
[401211598,1768047049999,-27210.80105031,0.000179,2]
[401211599,1768047050010,-1000.0,0.000179,2]
[401211600,1768047050021,-1887.20841984,0.000179,2]
[401211601,1768047050032,-6487.0,0.000179,2]
[401211602,1768047050042,-213.87423394,0.00017909,2]
[401211603,1768047050053,-226.31905987,0.00017909,2]
[401211604,1768047050063,-6102.51909,0.0001791,2]
[401211605,1768047050074,-150.0,0.00017911,2]
[401211606,1768047050084,-150.0,0.00017913,2]
[401211607,1768047050094,-150.0,0.00017913,2]
[401211608,1768047050104,-150.0,0.00017916,2]
[401211609,1768047050114,-150.0,0.00017917,2]
[401211610,1768047050124,-478.0,0.00017918,2]
[401211611,1768047050133,-500.0,0.00017918,2]
[401211612,1768047050144,-280.6,0.00017924,2]
[401211613,1768047050154,-213.87423394,0.00017927,2]
[401211614,1768047050164,-226.31905987,0.00017927,2]
[401211615,1768047050174,-150.0,0.00017933,2]
[401211616,1768047050185,-150.0,0.00017935,2]
[401211617,1768047050195,-150.0,0.00017938,2]
[401211618,1768047050206,-150.0,0.00017941,2]
[401211619,1768047050216,-150.0,0.00017942,2]
[401211620,1768047050226,-150.0,0.00017944,2]
[401211621,1768047050236,-213.87423394,0.00017945,2]
[401211622,1768047050246,-226.31905987,0.00017945,2]
[401211623,1768047050256,-181.00537575,0.00017946,2]
[401211624,1768047050267,-150.0,0.00017957,2]
[401211625,1768047050278,-150.0,0.00017958,2]
[401211626,1768047050288,-150.0,0.00017959,2]
[401211627,1768047050299,-213.87423394,0.00017964,2]
[401211628,1768047050309,-226.31905987,0.00017964,2]
[401211629,1768047050319,-122530.5509895,0.00017968,2]
[401211630,1768047050330,-150.0,0.0001797,2]
[401211631,1768047050339,-150.0,0.00017971,2]
[401211632,1768047050349,-500.0,0.00017972,2]
[401211633,1768047050360,-303.0,0.00017973,2]
[401211634,1768047050370,-507.85664462,0.00017973,2]
[401211635,1768047050380,-500.0,0.00017973,2]
[401211636,1768047050391,-500.0,0.00017973,2]
[401211637,1768047050402,-500.0,0.00017973,2]
[401211638,1768047050412,-500.0,0.00017973,2]
[401211639,1768047050423,-500.0,0.00017973,2]
[401211640,1768047050435,-500.0,0.00017973,2]
[401211641,1768047050446,-260.97339631,0.00017973,2]
[401211642,1768047050455,-500.0,0.00017973,2]
[401211643,1768047050465,-500.0,0.00017973,2]
[401211644,1768047050476,-300.29995774,0.00017973,2]
[401211645,1768047050485,-500.0,0.00017973,2]
[401211646,1768047050495,-500.0,0.00017973,2]
[401211647,1768047050507,-500.0,0.00017973,2]
[401211648,1768047050518,-500.0,0.00017973,2]
[401211649,1768047050528,-500.0,0.00017973,2]
[401211650,1768047050538,-500.0,0.00017973,2]
[401211651,1768047050548,-191.10319937,0.00017973,2]
[401211652,1768047050559,-501.2767774,0.00017973,2]
[401211653,1768047050569,-500.0,0.00017973,2]
[401211654,1768047050579,-500.0,0.00017973,2]
[401211655,1768047050589,-500.0,0.00017973,2]
[401211656,1768047050599,-433.9562915,0.00017973,2]
[401211657,1768047050609,-500.0,0.00017973,2]
[401211658,1768047050620,-150.34167383,0.00017973,2]
[401211659,1768047050630,-500.0,0.00017973,2]
[401211660,1768047050639,-610.19552731,0.00017973,2]
[401211661,1768047050649,-500.0,0.00017973,2]
[401211662,1768047050659,-500.0,0.00017973,2]
[401211663,1768047050669,-500.0,0.00017973,2]
[401211664,1768047050679,-500.0,0.00017973,2]
[401211665,1768047050688,-500.0,0.00017973,2]
[401211666,1768047050698,-500.0,0.00017973,2]
[401211667,1768047050707,-500.0,0.00017973,2]
[401211668,1768047050719,-500.0,0.00017973,2]
[401211669,1768047050729,-500.0,0.00017973,2]
[401211670,1768047050738,-500.0,0.00017973,2]
[401211671,1768047050748,-500.0,0.00017973,2]
[401211672,1768047050758,-500.0,0.00017973,2]
[401211673,1768047050768,-641.77796518,0.00017973,2]
[401211674,1768047050778,-500.0,0.00017973,2]
[401211675,1768047050788,-588.0072514,0.00017973,2]
[401211676,1768047050798,-500.0,0.00017973,2]
[401211677,1768047050807,-500.0,0.00017973,2]
[401211678,1768047050817,-500.0,0.00017973,2]
[401211679,1768047050827,-500.85151996,0.00017973,2]
[401211680,1768047050838,-571.47009533,0.00017973,2]
[401211681,1768047050847,-500.0,0.00017973,2]
[401211682,1768047050857,-150.0,0.00017973,2]
[401211683,1768047050866,-150.0,0.00017973,2]
[401211684,1768047050876,-150.0,0.00017978,2]
[401211685,1768047050886,-150.0,0.00017979,2]
[401211686,1768047050896,-213.87423394,0.00017982,2]
[401211687,1768047050906,-226.31905987,0.00017982,2]
[401211688,1768047050916,-500.0,0.00017982,2]
[401211689,1768047050928,-1000.0,0.00017984,2]
[401211690,1768047050938,-370.0,0.00017989,2]
[401211691,1768047050950,-639.19956225,0.0001799,2]
[401211692,1768047050960,-639.19956225,0.0001799,2]
[401211693,1768047050970,-500.0,0.00017995,2]
[401211694,1768047050981,-500.0,0.00017995,2]
[401211695,1768047050991,-15390.965808,0.00017996,2]
[401211696,1768047051001,-368575.2221998,0.00017996,2]
[401211697,1768047051011,-707.12015137,0.00017999,2]
[401211698,1768047051020,-2303.5465361,0.00017999,2]
[401211699,1768047051030,-308.3612929,0.00017999,2]
[401211700,1768047051040,-300.0,0.00017999,2]
[401211701,1768047051050,-666.0,0.00017999,2]
[401211702,1768047051060,-300.0,0.00017999,2]
[401211703,1768047051070,-1283.39,0.00017999,2]
[401211704,1768047051080,-300.0,0.00017999,2]
[401211705,1768047051090,-500.0,0.00017999,2]
[401211706,1768047051101,-500.0,0.00017999,2]
[401211707,1768047051111,-500.0,0.00017999,2]
[401211708,1768047051121,-359.11221161,0.00017999,2]
[401211709,1768047051131,-300.0,0.00017999,2]
[401211710,1768047051141,-666.0,0.00017999,2]
[401211711,1768047051152,-201.93286099,0.00017999,2]
[401211712,1768047051162,-553.64373807,0.00017999,2]
[401211713,1768047051172,-159.50121702,0.00017999,2]
[401211714,1768047051183,-290.21795384,0.00018,2]
[401211715,1768047051193,-248.55733762,0.00018,2]
[401211716,1768047051203,-184.37181926,0.00018,2]
[401211717,1768047051213,-196.21798024,0.00018,2]
[401211718,1768047051223,-213.87423394,0.00018,2]